[Event "*** SCC Grand Prix: Titled Tuesday Blitz"]
[Site "Chess.com"]
[Date "2020.09.29"]
[Round "3"]
[White "Moultino06"]
[Black "gagtemp"]
[Result "1-0"]
[WhiteElo "2669"]
[BlackElo "1968"]
[TimeControl "180+1"]
[EndTime "10:27:15 PDT"]
[Termination "Moultino06 won on time"]

1. a3 {[%clk 0:03:00.9]} 1... c5 {[%clk 0:02:55.7]} 2. Nc3 {[%clk 0:02:58.6]}
2... e6 {[%clk 0:02:54.6]} 3. e4 {[%clk 0:02:58]} 3... d5 {[%clk 0:02:53.3]} 4.
exd5 {[%clk 0:02:57.6]} 4... exd5 {[%clk 0:02:53]} 5. d4 {[%clk 0:02:55.8]} 5...
Nf6 {[%clk 0:02:50.7]} 6. Nf3 {[%clk 0:02:55.5]} 6... Nc6 {[%clk 0:02:49.4]} 7.
Be2 {[%clk 0:02:46]} 7... cxd4 {[%clk 0:02:48.5]} 8. Nxd4 {[%clk 0:02:45.8]}
8... Bc5 {[%clk 0:02:46.2]} 9. Nb3 {[%clk 0:02:45.5]} 9... Bb6 {[%clk
0:02:44.3]} 10. O-O {[%clk 0:02:45.7]} 10... O-O {[%clk 0:02:44]} 11. Bg5 {[%clk
0:02:42]} 11... Be6 {[%clk 0:02:33.3]} 12. Bf3 {[%clk 0:02:38.1]} 12... d4
{[%clk 0:02:22.6]} 13. Ne4 {[%clk 0:02:36.6]} 13... Kh8 {[%clk 0:02:18.4]} 14.
Qc1 {[%clk 0:02:28]} 14... Ne5 {[%clk 0:02:13.1]} 15. Qf4 {[%clk 0:02:10.2]}
15... Nxf3+ {[%clk 0:02:03.1]} 16. Qxf3 {[%clk 0:02:11.1]} 16... Qd5 {[%clk
0:01:09]} 17. Bxf6 {[%clk 0:01:54.6]} 17... gxf6 {[%clk 0:01:07.1]} 18. Qxf6+
{[%clk 0:01:55.5]} 18... Kg8 {[%clk 0:01:06.2]} 19. Qf4 {[%clk 0:01:42]} 19...
Qf5 {[%clk 0:01:00.4]} 20. Qh4 {[%clk 0:01:26.9]} 20... d3 {[%clk 0:00:42]} 21.
Qg3+ {[%clk 0:01:01.5]} 21... Qg6 {[%clk 0:00:30.4]} 22. Qxd3 {[%clk 0:00:54.5]}
22... Rad8 {[%clk 0:00:25.6]} 23. Qf3 {[%clk 0:00:50.8]} 23... Bf5 {[%clk
0:00:18.3]} 24. Rfe1 {[%clk 0:00:43.5]} 24... a5 {[%clk 0:00:11.4]} 25. Nbc5
{[%clk 0:00:34.4]} 25... Bxc5 {[%clk 0:00:08.8]} 26. Nxc5 {[%clk 0:00:35.3]}
26... b6 {[%clk 0:00:06.6]} 27. Ne4 {[%clk 0:00:30.9]} 27... Kh8 {[%clk
0:00:05.2]} 28. Qc3+ {[%clk 0:00:27.7]} 28... Kg8 {[%clk 0:00:04.4]} 29. Nf6+
{[%clk 0:00:25.2]} 1-0

[Event "*** SCC Grand Prix: Titled Tuesday Blitz"]
[Site "Chess.com"]
[Date "2020.09.29"]
[Round "3"]
[White "Ginger_GM"]
[Black "ram1zan"]
[Result "1-0"]
[WhiteElo "2699"]
[BlackElo "2914"]
[TimeControl "180+1"]
[EndTime "10:27:16 PDT"]
[Termination "Ginger_GM won on time"]

1. c4 {[%clk 0:03:00.9]} 1... e5 {[%clk 0:02:59.4]} 2. Nc3 {[%clk 0:03:00.3]}
2... Nc6 {[%clk 0:02:59.5]} 3. g3 {[%clk 0:03:00.1]} 3... Nf6 {[%clk 0:03:00.3]}
4. Bg2 {[%clk 0:02:59.9]} 4... Bb4 {[%clk 0:03:00.4]} 5. e4 {[%clk 0:02:54.5]}
5... d6 {[%clk 0:02:56.5]} 6. Nge2 {[%clk 0:02:53.6]} 6... Bc5 {[%clk
0:02:48.1]} 7. h3 {[%clk 0:02:50.9]} 7... a6 {[%clk 0:02:25.8]} 8. d3 {[%clk
0:02:49.5]} 8... Nd7 {[%clk 0:02:00.8]} 9. O-O {[%clk 0:02:32.4]} 9... Nf8
{[%clk 0:01:49.9]} 10. Kh2 {[%clk 0:02:26.5]} 10... Ne6 {[%clk 0:01:16.7]} 11.
f4 {[%clk 0:02:25.5]} 11... Ned4 {[%clk 0:01:13.6]} 12. Nxd4 {[%clk 0:01:41.5]}
12... Nxd4 {[%clk 0:01:09.3]} 13. f5 {[%clk 0:01:34.2]} 13... c6 {[%clk
0:00:59]} 14. Rb1 {[%clk 0:01:18.6]} 14... h5 {[%clk 0:00:54.7]} 15. b4 {[%clk
0:01:13.8]} 15... Ba7 {[%clk 0:00:54.8]} 16. Ne2 {[%clk 0:01:04.6]} 16... Bd7
{[%clk 0:00:51.8]} 17. Be3 {[%clk 0:00:55]} 17... a5 {[%clk 0:00:27.3]} 18. a3
{[%clk 0:00:47.4]} 18... axb4 {[%clk 0:00:27.1]} 19. axb4 {[%clk 0:00:47.5]}
19... Nxe2 {[%clk 0:00:19.8]} 20. Qxe2 {[%clk 0:00:47.4]} 20... Bxe3 {[%clk
0:00:13.1]} 21. Qxe3 {[%clk 0:00:48.3]} 21... f6 {[%clk 0:00:13.3]} 22. d4
{[%clk 0:00:40.2]} 22... Qe7 {[%clk 0:00:08.4]} 23. c5 {[%clk 0:00:29.8]} 23...
O-O {[%clk 0:00:08.2]} 24. Ra1 {[%clk 0:00:23.1]} 24... Rfd8 {[%clk 0:00:07.3]}
25. Rfd1 {[%clk 0:00:16.9]} 25... Rxa1 {[%clk 0:00:05.4]} 26. Rxa1 {[%clk
0:00:17.8]} 26... Be8 {[%clk 0:00:06]} 27. d5 {[%clk 0:00:17.9]} 1-0

[Event "*** SCC Grand Prix: Titled Tuesday Blitz"]
[Site "Chess.com"]
[Date "2020.09.29"]
[Round "3"]
[White "annacramling"]
[Black "kleopl"]
[Result "0-1"]
[WhiteElo "2029"]
[BlackElo "2458"]
[TimeControl "180+1"]
[EndTime "10:27:17 PDT"]
[Termination "kleopl won by checkmate"]

1. d4 {[%clk 0:02:54]} 1... f5 {[%clk 0:02:58.5]} 2. e4 {[%clk 0:02:53.2]} 2...
fxe4 {[%clk 0:02:57.6]} 3. Nc3 {[%clk 0:02:53.2]} 3... Nf6 {[%clk 0:02:56.5]} 4.
Bg5 {[%clk 0:02:52.9]} 4... Nc6 {[%clk 0:02:54.9]} 5. d5 {[%clk 0:02:49.5]} 5...
Ne5 {[%clk 0:02:54.7]} 6. Qd4 {[%clk 0:02:35.5]} 6... Nf7 {[%clk 0:02:54.6]} 7.
Bxf6 {[%clk 0:02:33.1]} 7... exf6 {[%clk 0:02:53]} 8. Nxe4 {[%clk 0:02:33.5]}
8... f5 {[%clk 0:02:23.5]} 9. Nc3 {[%clk 0:02:10.3]} 9... Qe7+ {[%clk 0:02:15]}
10. Be2 {[%clk 0:02:07.5]} 10... Qe5 {[%clk 0:02:14.4]} 11. Nf3 {[%clk
0:01:57.4]} 11... Qxd4 {[%clk 0:02:13.2]} 12. Nxd4 {[%clk 0:01:57.4]} 12... g6
{[%clk 0:02:13.1]} 13. Ncb5 {[%clk 0:01:32.8]} 13... Kd8 {[%clk 0:02:12.6]} 14.
O-O-O {[%clk 0:01:32]} 14... a6 {[%clk 0:02:09.8]} 15. Nc3 {[%clk 0:01:06.9]}
15... Bg7 {[%clk 0:02:09.5]} 16. Bc4 {[%clk 0:01:06.5]} 16... Ne5 {[%clk
0:02:06.5]} 17. Bb3 {[%clk 0:01:05.8]} 17... d6 {[%clk 0:02:01.3]} 18. Rhe1
{[%clk 0:00:58.9]} 18... Re8 {[%clk 0:01:50.2]} 19. f4 {[%clk 0:00:58.7]} 19...
Ng4 {[%clk 0:01:47]} 20. Rxe8+ {[%clk 0:00:57.1]} 20... Kxe8 {[%clk 0:01:47.9]}
21. Re1+ {[%clk 0:00:57.4]} 21... Kf7 {[%clk 0:01:32.7]} 22. Ne6 {[%clk
0:00:51.7]} 22... Bxc3 {[%clk 0:01:31.9]} 23. Ng5+ {[%clk 0:00:34.6]} 23... Kf8
{[%clk 0:01:12.8]} 24. bxc3 {[%clk 0:00:33]} 24... h6 {[%clk 0:01:11.5]} 25.
Ne6+ {[%clk 0:00:11.1]} 25... Bxe6 {[%clk 0:01:11.4]} 26. Rxe6 {[%clk 0:00:11]}
26... Kf7 {[%clk 0:01:08.4]} 27. h3 {[%clk 0:00:10.6]} 27... Nf6 {[%clk
0:01:07.3]} 28. Kd2 {[%clk 0:00:11]} 28... Ne4+ {[%clk 0:01:04.5]} 29. Kd3
{[%clk 0:00:09.9]} 29... Nc5+ {[%clk 0:01:04.6]} 30. Kd2 {[%clk 0:00:09.7]}
30... Nxe6 {[%clk 0:01:04]} 31. dxe6+ {[%clk 0:00:08.6]} 31... Kf6 {[%clk
0:01:04.2]} 32. g4 {[%clk 0:00:09]} 32... fxg4 {[%clk 0:01:00.9]} 33. hxg4
{[%clk 0:00:09.9]} 33... h5 {[%clk 0:01:00.9]} 34. gxh5 {[%clk 0:00:09.4]} 34...
gxh5 {[%clk 0:01:01.8]} 35. Ke3 {[%clk 0:00:08.9]} 35... Rg8 {[%clk 0:00:58.9]}
36. Kf2 {[%clk 0:00:07.6]} 36... h4 {[%clk 0:00:58.6]} 37. e7 {[%clk 0:00:03.1]}
37... Re8 {[%clk 0:00:57.2]} 38. Kg2 {[%clk 0:00:03.5]} 38... Rxe7 {[%clk
0:00:56.9]} 39. Kh3 {[%clk 0:00:04.4]} 39... Kf5 {[%clk 0:00:46.5]} 40. Kxh4
{[%clk 0:00:04.4]} 40... Kxf4 {[%clk 0:00:46.4]} 41. Bd5 {[%clk 0:00:05.1]}
41... Rh7# {[%clk 0:00:44.6]} 0-1

[Event "*** SCC Grand Prix: Titled Tuesday Blitz"]
[Site "Chess.com"]
[Date "2020.09.29"]
[Round "3"]
[White "Berardino"]
[Black "Hikaru"]
[Result "0-1"]
[WhiteElo "2711"]
[BlackElo "3246"]
[TimeControl "180+1"]
[EndTime "10:27:18 PDT"]
[Termination "Hikaru won on time"]

1. e4 {[%clk 0:03:00.9]} 1... d5 {[%clk 0:02:59.1]} 2. exd5 {[%clk 0:03:00.6]}
2... Qxd5 {[%clk 0:03:00]} 3. Nc3 {[%clk 0:02:59.5]} 3... Qa5 {[%clk 0:02:59.9]}
4. d4 {[%clk 0:02:58.9]} 4... Bf5 {[%clk 0:02:58.5]} 5. Nf3 {[%clk 0:02:58.8]}
5... c6 {[%clk 0:02:58.5]} 6. Bc4 {[%clk 0:02:58.9]} 6... e6 {[%clk 0:02:58.6]}
7. Bd2 {[%clk 0:02:58]} 7... Nf6 {[%clk 0:02:58.4]} 8. Nd5 {[%clk 0:02:57.3]}
8... Qd8 {[%clk 0:02:58.2]} 9. Nxf6+ {[%clk 0:02:58.2]} 9... gxf6 {[%clk
0:02:59]} 10. Qe2 {[%clk 0:02:55.5]} 10... Nd7 {[%clk 0:02:58.7]} 11. O-O-O
{[%clk 0:02:53.1]} 11... Nb6 {[%clk 0:02:58.1]} 12. Bd3 {[%clk 0:02:49.7]} 12...
Bg6 {[%clk 0:02:52.5]} 13. Kb1 {[%clk 0:02:48.4]} 13... Qd5 {[%clk 0:02:52.2]}
14. h4 {[%clk 0:02:34.1]} 14... O-O-O {[%clk 0:02:49.2]} 15. Bc1 {[%clk
0:02:22.9]} 15... Rg8 {[%clk 0:02:47.1]} 16. g3 {[%clk 0:02:01.9]} 16... Bxd3
{[%clk 0:02:20.1]} 17. Rxd3 {[%clk 0:02:00.6]} 17... h5 {[%clk 0:02:19.7]} 18.
b3 {[%clk 0:01:56.9]} 18... Rg4 {[%clk 0:02:18.7]} 19. Re1 {[%clk 0:01:53.1]}
19... Bb4 {[%clk 0:02:17.2]} 20. c3 {[%clk 0:01:48.8]} 20... Be7 {[%clk
0:02:15.6]} 21. c4 {[%clk 0:01:43.4]} 21... Qf5 {[%clk 0:02:15.6]} 22. Qc2
{[%clk 0:01:37.3]} 22... Bb4 {[%clk 0:02:12.2]} 23. Re2 {[%clk 0:01:33.1]} 23...
Nd7 {[%clk 0:02:10.5]} 24. Rde3 {[%clk 0:01:28]} 24... Qxc2+ {[%clk 0:02:08.7]}
25. Kxc2 {[%clk 0:01:28.9]} 25... f5 {[%clk 0:02:09]} 26. Rd3 {[%clk 0:01:24.7]}
26... Bd6 {[%clk 0:02:07.4]} 27. Bg5 {[%clk 0:01:22.9]} 27... Re8 {[%clk
0:02:04.6]} 28. Nh2 {[%clk 0:00:40.3]} 28... Re4 {[%clk 0:02:03.9]} 29. Rxe4
{[%clk 0:00:26.3]} 29... fxe4 {[%clk 0:02:04.8]} 30. Re3 {[%clk 0:00:27]} 30...
f5 {[%clk 0:01:50.4]} 31. Nf1 {[%clk 0:00:26.6]} 31... e5 {[%clk 0:01:39.1]} 32.
dxe5 {[%clk 0:00:17.7]} 32... Nxe5 {[%clk 0:01:39]} 33. Nd2 {[%clk 0:00:15.5]}
33... Kd7 {[%clk 0:01:32.4]} 34. Bf4 {[%clk 0:00:15.5]} 34... Ng4 {[%clk
0:01:19.2]} 35. Re2 {[%clk 0:00:15]} 35... Bxf4 {[%clk 0:01:19.9]} 36. gxf4
{[%clk 0:00:15.4]} 36... Nf6 {[%clk 0:01:20.8]} 37. Nf1 {[%clk 0:00:15.2]} 37...
Rg8 {[%clk 0:01:20.8]} 38. Ng3 {[%clk 0:00:15.4]} 38... Ke6 {[%clk 0:01:21.2]}
39. Re3 {[%clk 0:00:14.7]} 39... Rg4 {[%clk 0:01:21]} 40. Ne2 {[%clk 0:00:10.7]}
40... c5 {[%clk 0:01:21.6]} 41. b4 {[%clk 0:00:10.7]} 41... cxb4 {[%clk
0:01:12.3]} 42. Nd4+ {[%clk 0:00:10.7]} 42... Kd7 {[%clk 0:01:12.4]} 43. Nxf5
{[%clk 0:00:11.6]} 43... Rxf4 {[%clk 0:01:12.9]} 44. Ng3 {[%clk 0:00:10.4]}
44... Rxh4 {[%clk 0:01:10.5]} 45. Kb3 {[%clk 0:00:07.9]} 45... Rf4 {[%clk
0:01:10.4]} 46. Kxb4 {[%clk 0:00:06.5]} 46... h4 {[%clk 0:01:09.3]} 47. Ne2
{[%clk 0:00:06.9]} 47... Rxf2 {[%clk 0:01:09.3]} 48. Nc3 {[%clk 0:00:07.1]}
48... Rf3 {[%clk 0:01:07.3]} 49. Re1 {[%clk 0:00:04.5]} 49... e3 {[%clk
0:01:06.5]} 50. Rh1 {[%clk 0:00:02.9]} 50... h3 {[%clk 0:01:06.8]} 51. Ne2
{[%clk 0:00:03]} 51... Rf2 {[%clk 0:01:05.8]} 0-1

[Event "*** SCC Grand Prix: Titled Tuesday Blitz"]
[Site "Chess.com"]
[Date "2020.09.29"]
[Round "3"]
[White "WarEmblem"]
[Black "aloe_normansen"]
[Result "0-1"]
[WhiteElo "2104"]
[BlackElo "2350"]
[TimeControl "180+1"]
[EndTime "10:27:18 PDT"]
[Termination "aloe_normansen won on time"]

1. e4 {[%clk 0:03:00.9]} 1... c5 {[%clk 0:02:59.9]} 2. Nf3 {[%clk 0:02:59.7]}
2... d6 {[%clk 0:03:00.2]} 3. d4 {[%clk 0:02:58.2]} 3... cxd4 {[%clk 0:03:01.1]}
4. Nxd4 {[%clk 0:02:58.2]} 4... Nf6 {[%clk 0:03:01.4]} 5. Nc3 {[%clk 0:02:56.4]}
5... a6 {[%clk 0:03:01.7]} 6. f4 {[%clk 0:02:54.8]} 6... e6 {[%clk 0:02:56.5]}
7. Nf3 {[%clk 0:02:52.4]} 7... b5 {[%clk 0:02:55.4]} 8. a3 {[%clk 0:02:49.9]}
8... Bb7 {[%clk 0:02:54]} 9. Bd3 {[%clk 0:02:50.2]} 9... Nbd7 {[%clk 0:02:50.8]}
10. O-O {[%clk 0:02:48.3]} 10... Be7 {[%clk 0:02:50.7]} 11. Qe1 {[%clk
0:02:40.9]} 11... Rc8 {[%clk 0:02:12.5]} 12. Kh1 {[%clk 0:02:22.4]} 12... h5
{[%clk 0:01:50.3]} 13. Be3 {[%clk 0:01:43.7]} 13... h4 {[%clk 0:01:41.7]} 14.
Bd4 {[%clk 0:00:43.8]} 14... h3 {[%clk 0:01:37.4]} 15. g3 {[%clk 0:00:42.6]}
15... Qc7 {[%clk 0:01:12.6]} 16. Qe2 {[%clk 0:00:34.9]} 16... e5 {[%clk
0:01:06.6]} 17. Be3 {[%clk 0:00:23.4]} 17... exf4 {[%clk 0:01:04.1]} 18. Bxf4
{[%clk 0:00:21.9]} 18... Ne5 {[%clk 0:01:01.2]} 19. Nxe5 {[%clk 0:00:19.5]}
19... dxe5 {[%clk 0:01:02.1]} 20. Bg5 {[%clk 0:00:19.6]} 20... Qd6 {[%clk
0:00:51.5]} 21. Rad1 {[%clk 0:00:18.1]} 21... Qe6 {[%clk 0:00:48.4]} 22. Bxf6
{[%clk 0:00:15.7]} 22... Bxf6 {[%clk 0:00:49.3]} 23. Nd5 {[%clk 0:00:11.7]}
23... Bxd5 {[%clk 0:00:42.1]} 24. exd5 {[%clk 0:00:12.6]} 24... Qxd5+ {[%clk
0:00:42.5]} 25. Be4 {[%clk 0:00:12.3]} 25... Qc5 {[%clk 0:00:40.7]} 26. c3
{[%clk 0:00:10.9]} 26... Rd8 {[%clk 0:00:31.8]} 27. Rxd8+ {[%clk 0:00:09.8]}
27... Kxd8 {[%clk 0:00:32.5]} 28. Rd1+ {[%clk 0:00:07.9]} 28... Ke7 {[%clk
0:00:32.9]} 29. Qd3 {[%clk 0:00:05.8]} 29... Qc7 {[%clk 0:00:29.6]} 30. Bf5
{[%clk 0:00:03.5]} 30... Qc6+ {[%clk 0:00:22.9]} 0-1

[Event "*** SCC Grand Prix: Titled Tuesday Blitz"]
[Site "Chess.com"]
[Date "2020.09.29"]
[Round "3"]
[White "mishanick"]
[Black "seorobert1971"]
[Result "1/2-1/2"]
[WhiteElo "3001"]
[BlackElo "2715"]
[TimeControl "180+1"]
[EndTime "10:27:19 PDT"]
[Termination "Game drawn by repetition"]

1. d4 {[%clk 0:03:00.9]} 1... c6 {[%clk 0:03:00.9]} 2. c4 {[%clk 0:03:01.2]}
2... d5 {[%clk 0:03:01.3]} 3. Nf3 {[%clk 0:03:01.2]} 3... Nf6 {[%clk 0:03:01.3]}
4. Nc3 {[%clk 0:03:01]} 4... e6 {[%clk 0:03:01.1]} 5. Bg5 {[%clk 0:03:01.2]}
5... Nbd7 {[%clk 0:03:01.3]} 6. e3 {[%clk 0:02:59.9]} 6... Qa5 {[%clk
0:03:01.2]} 7. cxd5 {[%clk 0:02:59.1]} 7... Nxd5 {[%clk 0:02:59.8]} 8. Qd2
{[%clk 0:02:58.9]} 8... Bb4 {[%clk 0:02:57.6]} 9. Rc1 {[%clk 0:02:58.7]} 9... b6
{[%clk 0:02:54.7]} 10. Bd3 {[%clk 0:02:52.4]} 10... Ba6 {[%clk 0:02:52.6]} 11.
O-O {[%clk 0:02:51.9]} 11... Bxd3 {[%clk 0:02:51.1]} 12. Qxd3 {[%clk 0:02:52.8]}
12... Nxc3 {[%clk 0:02:50.3]} 13. bxc3 {[%clk 0:02:53.7]} 13... Bd6 {[%clk
0:02:50.1]} 14. c4 {[%clk 0:02:49]} 14... O-O {[%clk 0:02:46.6]} 15. Rc2 {[%clk
0:02:47.1]} 15... Rfe8 {[%clk 0:02:43.6]} 16. Rd1 {[%clk 0:02:47.1]} 16... Qa3
{[%clk 0:02:41.2]} 17. Qe4 {[%clk 0:02:27.6]} 17... Rac8 {[%clk 0:02:39.4]} 18.
h4 {[%clk 0:02:26.7]} 18... Bf8 {[%clk 0:02:37.9]} 19. h5 {[%clk 0:02:19.5]}
19... h6 {[%clk 0:02:32.5]} 20. Bh4 {[%clk 0:02:18]} 20... Qd6 {[%clk
0:02:27.4]} 21. Ne5 {[%clk 0:02:02.5]} 21... Qc7 {[%clk 0:02:10.4]} 22. Bg3
{[%clk 0:01:58.2]} 22... Nxe5 {[%clk 0:02:06.2]} 23. Bxe5 {[%clk 0:01:57.7]}
23... Qd7 {[%clk 0:02:06.3]} 24. Qg4 {[%clk 0:01:52.5]} 24... Rcd8 {[%clk
0:02:02.8]} 25. Rcd2 {[%clk 0:01:47.6]} 25... Qe7 {[%clk 0:01:54.3]} 26. g3
{[%clk 0:01:43.5]} 26... Qg5 {[%clk 0:01:51.4]} 27. Qxg5 {[%clk 0:01:41.3]}
27... hxg5 {[%clk 0:01:51.1]} 28. g4 {[%clk 0:01:41.8]} 28... f6 {[%clk
0:01:50.5]} 29. Bg3 {[%clk 0:01:41.1]} 29... Bd6 {[%clk 0:01:49.3]} 30. Kg2
{[%clk 0:01:35.7]} 30... Bxg3 {[%clk 0:01:48.6]} 31. Kxg3 {[%clk 0:01:36.6]}
31... Kf7 {[%clk 0:01:48.6]} 32. Kf3 {[%clk 0:01:30.5]} 32... Rd7 {[%clk
0:01:48]} 33. a4 {[%clk 0:01:30.5]} 33... Red8 {[%clk 0:01:46.2]} 34. Ke4 {[%clk
0:01:27.7]} 34... c5 {[%clk 0:01:42.4]} 35. d5 {[%clk 0:01:26.2]} 35... exd5+
{[%clk 0:01:42.2]} 36. Rxd5 {[%clk 0:01:23.7]} 36... Rxd5 {[%clk 0:01:34.3]} 37.
Rxd5 {[%clk 0:01:24.6]} 37... Re8+ {[%clk 0:01:33.2]} 38. Kf5 {[%clk 0:01:21.5]}
38... Re7 {[%clk 0:01:33.3]} 39. e4 {[%clk 0:01:20.6]} 39... a5 {[%clk
0:01:23.2]} 40. f3 {[%clk 0:01:18]} 40... Rb7 {[%clk 0:01:22.5]} 41. e5 {[%clk
0:01:17.6]} 41... Re7 {[%clk 0:01:20.5]} 42. e6+ {[%clk 0:00:44.3]} 42... Rxe6
{[%clk 0:01:17.8]} 43. Rd7+ {[%clk 0:00:44.5]} 43... Re7 {[%clk 0:01:15.2]} 44.
Rxe7+ {[%clk 0:00:44.9]} 44... Kxe7 {[%clk 0:01:15.3]} 45. Kg6 {[%clk
0:00:45.8]} 45... Kf8 {[%clk 0:01:13.3]} 46. h6 {[%clk 0:00:45.9]} 46... gxh6
{[%clk 0:01:13.1]} 47. Kxf6 {[%clk 0:00:46.4]} 47... Ke8 {[%clk 0:01:12.7]} 48.
Ke5 {[%clk 0:00:12.1]} 48... Ke7 {[%clk 0:01:10.2]} 49. Kd5 {[%clk 0:00:11.9]}
49... Kd7 {[%clk 0:01:10.2]} 50. Ke5 {[%clk 0:00:12.1]} 50... Ke7 {[%clk
0:01:10.2]} 51. Kf5 {[%clk 0:00:10.6]} 51... Kf7 {[%clk 0:01:09.9]} 52. Ke5
{[%clk 0:00:10]} 52... Ke7 {[%clk 0:01:09.7]} 1/2-1/2

[Event "*** SCC Grand Prix: Titled Tuesday Blitz"]
[Site "Chess.com"]
[Date "2020.09.29"]
[Round "3"]
[White "Leo_C"]
[Black "Sadykov_Ramil"]
[Result "0-1"]
[WhiteElo "2272"]
[BlackElo "2516"]
[TimeControl "180+1"]
[EndTime "10:27:20 PDT"]
[Termination "Sadykov_Ramil won by resignation"]

1. d4 {[%clk 0:03:00.9]} 1... Nf6 {[%clk 0:02:59.3]} 2. c4 {[%clk 0:02:59.8]}
2... g6 {[%clk 0:02:58.6]} 3. f3 {[%clk 0:02:59.7]} 3... d5 {[%clk 0:02:57]} 4.
cxd5 {[%clk 0:02:59.2]} 4... Nxd5 {[%clk 0:02:57.9]} 5. e4 {[%clk 0:02:54.4]}
5... Nb6 {[%clk 0:02:58.2]} 6. Nc3 {[%clk 0:02:54.1]} 6... Bg7 {[%clk
0:02:57.8]} 7. Be3 {[%clk 0:02:52.2]} 7... O-O {[%clk 0:02:57.5]} 8. Qd2 {[%clk
0:02:50.7]} 8... Nc6 {[%clk 0:02:56.4]} 9. O-O-O {[%clk 0:02:50.4]} 9... Na5
{[%clk 0:02:56.3]} 10. b3 {[%clk 0:02:48.3]} 10... Nc6 {[%clk 0:02:55.7]} 11. h4
{[%clk 0:02:46]} 11... a5 {[%clk 0:02:48.7]} 12. d5 {[%clk 0:02:41.2]} 12... Nb4
{[%clk 0:02:26.5]} 13. Kb1 {[%clk 0:02:17]} 13... f5 {[%clk 0:01:30.7]} 14. Nge2
{[%clk 0:02:07.2]} 14... fxe4 {[%clk 0:01:24.1]} 15. fxe4 {[%clk 0:02:04.3]}
15... Bg4 {[%clk 0:01:23.2]} 16. Rc1 {[%clk 0:01:51.5]} 16... a4 {[%clk
0:00:44.4]} 17. Nxa4 {[%clk 0:01:38.5]} 17... Nxa4 {[%clk 0:00:33.9]} 18. Qxb4
{[%clk 0:01:34.4]} 18... Rxf1 {[%clk 0:00:20.4]} 19. Rhxf1 {[%clk 0:01:19.5]}
19... Bxe2 {[%clk 0:00:20.5]} 20. bxa4 {[%clk 0:01:12.1]} 20... Bd3+ {[%clk
0:00:19.1]} 21. Rc2 {[%clk 0:01:01.6]} 21... Bxf1 {[%clk 0:00:19.1]} 22. Qb3
{[%clk 0:00:55.8]} 22... Kh8 {[%clk 0:00:18.7]} 23. Rf2 {[%clk 0:00:54.3]} 23...
Ba6 {[%clk 0:00:12]} 24. Bc5 {[%clk 0:00:48.3]} 24... e6 {[%clk 0:00:06.3]} 25.
Rf7 {[%clk 0:00:41.2]} 25... Qxh4 {[%clk 0:00:04.4]} 26. Rxg7 {[%clk 0:00:20.8]}
26... Qe1+ {[%clk 0:00:03.3]} 27. Kc2 {[%clk 0:00:19.8]} 27... Qxe4+ {[%clk
0:00:03.4]} 28. Kd1 {[%clk 0:00:17.8]} 28... Kxg7 {[%clk 0:00:02.6]} 29. Qc3+
{[%clk 0:00:17.3]} 29... e5 {[%clk 0:00:03.1]} 0-1

[Event "*** SCC Grand Prix: Titled Tuesday Blitz"]
[Site "Chess.com"]
[Date "2020.09.29"]
[Round "3"]
[White "atalz0"]
[Black "Shivagami"]
[Result "0-1"]
[WhiteElo "2382"]
[BlackElo "2209"]
[TimeControl "180+1"]
[EndTime "10:27:20 PDT"]
[Termination "Shivagami won on time"]

1. d4 {[%clk 0:03:00.9]} 1... Nf6 {[%clk 0:02:56.8]} 2. c4 {[%clk 0:03:00.3]}
2... c5 {[%clk 0:02:57.4]} 3. d5 {[%clk 0:03:00.3]} 3... e6 {[%clk 0:02:58]} 4.
Nc3 {[%clk 0:02:59.6]} 4... exd5 {[%clk 0:02:58.6]} 5. cxd5 {[%clk 0:03:00.5]}
5... d6 {[%clk 0:02:58.8]} 6. e4 {[%clk 0:03:01]} 6... g6 {[%clk 0:02:58.7]} 7.
h3 {[%clk 0:03:01.4]} 7... Bg7 {[%clk 0:02:57]} 8. Nf3 {[%clk 0:03:01.9]} 8...
a6 {[%clk 0:02:57.1]} 9. a4 {[%clk 0:03:00.9]} 9... O-O {[%clk 0:02:57.6]} 10.
Bd3 {[%clk 0:03:01.4]} 10... Nbd7 {[%clk 0:02:57.8]} 11. O-O {[%clk 0:03:01.1]}
11... Rb8 {[%clk 0:02:54.3]} 12. Bf4 {[%clk 0:03:00.7]} 12... Ne8 {[%clk
0:02:54.3]} 13. Re1 {[%clk 0:02:54.3]} 13... Qc7 {[%clk 0:02:53.9]} 14. Rc1
{[%clk 0:02:52.3]} 14... c4 {[%clk 0:02:50.8]} 15. Nb1 {[%clk 0:02:16.5]} 15...
b5 {[%clk 0:02:48.2]} 16. b3 {[%clk 0:02:15.6]} 16... c3 {[%clk 0:02:41.6]} 17.
e5 {[%clk 0:02:08.6]} 17... dxe5 {[%clk 0:02:32]} 18. Rxc3 {[%clk 0:02:06.6]}
18... Qd6 {[%clk 0:02:31.9]} 19. Bh2 {[%clk 0:01:37.5]} 19... Qxd5 {[%clk
0:02:23.9]} 20. axb5 {[%clk 0:01:15]} 20... axb5 {[%clk 0:02:09.3]} 21. Be4
{[%clk 0:01:14.6]} 21... Qe6 {[%clk 0:01:58.7]} 22. Bd5 {[%clk 0:01:06.7]} 22...
Qe7 {[%clk 0:01:55.6]} 23. Rce3 {[%clk 0:00:52]} 23... Nc7 {[%clk 0:01:31.1]}
24. Nxe5 {[%clk 0:00:36.2]} 24... Nxe5 {[%clk 0:01:28.4]} 25. Bxe5 {[%clk
0:00:35]} 25... Bxe5 {[%clk 0:01:29]} 26. Rxe5 {[%clk 0:00:34.8]} 26... Qb4
{[%clk 0:01:24.8]} 27. Bf3 {[%clk 0:00:20.1]} 27... Be6 {[%clk 0:01:22.1]} 28.
Qc2 {[%clk 0:00:13.8]} 28... Rfc8 {[%clk 0:01:18.3]} 29. Qd2 {[%clk 0:00:11.8]}
29... Qxb3 {[%clk 0:01:16.3]} 30. Nc3 {[%clk 0:00:10.6]} 30... Rd8 {[%clk
0:01:15.5]} 31. Qe3 {[%clk 0:00:09.4]} 31... Ne8 {[%clk 0:01:08.7]} 32. Ne4
{[%clk 0:00:07.4]} 32... Qxe3 {[%clk 0:01:07.3]} 33. Rxe3 {[%clk 0:00:07.6]}
33... b4 {[%clk 0:01:04.5]} 34. Re2 {[%clk 0:00:04]} 34... b3 {[%clk 0:01:03.8]}
35. Rb2 {[%clk 0:00:04.1]} 35... Rdc8 {[%clk 0:01:00.8]} 36. Rc5 {[%clk
0:00:03.6]} 36... f5 {[%clk 0:00:48.8]} 37. Rxc8 {[%clk 0:00:02.8]} 37... Rxc8
{[%clk 0:00:45.4]} 38. Nd2 {[%clk 0:00:03]} 38... Rc2 {[%clk 0:00:44.1]} 0-1